Cogmind - Beta 17 @@@ ROGUE MODE // 2026.07.04 @ 17:56:26 Player: eph7ra Result: Destroyed by G-47 Trooper with Particle Gun Performance ------------- Evolutions (1) 500 Regions Visited (3) 600 Robots Destroyed (13) 65 Value Destroyed (269) 269 Prototype IDs (0) 0 Alien Tech Used (0) 0 Bonus (0) 0 TOTAL SCORE: 1434 Bonus ------- None Cogmind --------- Core Integrity 0/400 Matter 300/300 Energy 99/100 System Corruption 2% Temperature Cool (9) Movement Core (50) Location -9/Mines Parts ------- > --- POWER (1) -------- (None) > --- PROPULSION (3) --- (None) > --- UTILITY (3) ------ (None) > --- WEAPON (2) ------- (None) > --- INVENTORY (5) ---- Light Ion Engine Wheel Medium Laser Beam Cannon Light Assault Rifle Peak State ------------ > --- POWER ------------ Light Ion Engine > --- PROPULSION ------- Light Treads Light Treads Light Treads > --- UTILITY ---------- Small Storage Unit Light Armor Plating > --- WEAPON ----------- EM Pulse Gun EM Pulse Gun > --- INVENTORY -------- Light Ion Engine Light Treads Light Treads Wheel Wheel Medium Laser Beam Cannon Light Assault Rifle [Rating: 8] Favorites ----------- Power Light Ion Engine Engine Light Ion Engine Propulsion Light Treads Treads Light Treads Leg Aluminum Leg Utility Small Storage Unit Storage Small Storage Unit Protection Light Armor Plating Weapon EM Pulse Gun Energy Gun EM Pulse Gun Ballistic Gun Assault Rifle Build | -11 -10 -9 -9 ------- Run | Yrd Mat Mat Min Slots Evolved 2 | . . 2 . Power . | . . . . Propulsion 1 | . . 1 . Utility 1 | . . 1 . Weapon . | . . . . Parts Attached 12 | 6 5 1 . Power 1 | 1 . . . Engine 1 | 1 . . . Core . | . . . . Reactor . | . . . . Propulsion 5 | 2 2 1 . Treads 3 | . 2 1 . Leg 2 | 2 . . . Wheel . | . . . . Hover . | . . . . Flight . | . . . . Utility 2 | 1 1 . . Device . | . . . . Storage 1 | 1 . . . Processor . | . . . . Hackware . | . . . . Protection 1 | . 1 . . Artifact . | . . . . Weapon 4 | 2 2 . . Energy Gun 2 | . 2 . . Energy Cannon . | . . . . Ballistic Gun 2 | 2 . . . Ballistic Cannon . | . . . . Launcher . | . . . . Special Weapon . | . . . . Impact Weapon . | . . . . Slashing Weapon . | . . . . Piercing Weapon . | . . . . Special Melee Weapon . | . . . . Unidentified Prototypes . | . . . . Corrupted Parts 1 | . . 1 . System Corruption 2 | . . 2 . Parts Lost 8 | . . 4 4 Power 1 | . . . 1 Propulsion 3 | . . 1 2 Utility 2 | . . 1 1 Weapon 2 | . . 2 . Highest Loss Streak 4 | . . 1 4 To Critical Strikes . | . . . . Average Backups 7 | 4 7 8 7 Power . | . 1 1 1 Propulsion 3 | 2 4 4 3 Utility . | . . . . Weapon 2 | . 2 3 3 Tool/Special . | . . . . Unused Backups 8 | . . . 8 Power 1 | . . . 1 Propulsion 4 | . . . 4 Utility . | . . . . Weapon 3 | . . . 3 Tool/Special . | . . . . Average Slot Usage (%) 81 | . 96 77 16 Engine 11 | . 14 11 1 Treads 25 | . 23 30 6 Leg 2 | . 4 . . Storage 12 | . 14 11 8 Protection 8 | . 10 8 . Energy Gun 10 | . 7 16 . Ballistic Gun 9 | . 20 . . Peak Build Rating 8 | 6 7 8 4 Average Rating 6 | 4 6 7 1 On Entrance 4 | . 6 7 4 Avg Prop Armor Cover (%) . | . . . . Naked Turns 20 | . . . 20 Heaviest Build 15 | 12 15 15 8 Greatest Support 60 | 20 40 60 40 Greatest Overweight (x) 2 | 2 . . 1 Average Overweight (x) . | . . . . Largest Inventory Capacity 8 | 8 8 8 8 Average Capacity 7 | 7 8 8 7 Most Carried 8 | 6 8 8 8 Average Carried 7 | 4 7 8 7 Final Capacity 8 | 8 8 8 5 Final Carried 8 | 6 8 8 5 Class Distribution -------------------- 100% | Mutant Dominant Class ---------------- Mutant | -10/Materials Mutant | -9/Materials Mutant | -9/Mines Resources | -11 -10 -9 -9 ----------- Run | Yrd Mat Mat Min Matter Collected 372 | 205 157 10 . Remotely . | . . . . Salvage Created 440 | . 221 219 . Parts 26 | . 15 11 . Haulers Intercepted 1 | . 1 . . Recyclers Shooed . | . . . . Parts Field Recycled . | . . . . Retrieved Matter . | . . . . Parts Self-Destructed . | . . . . Prevented . | . . . . Parts Restored . | . . . . Kills | -11 -10 -9 -9 ------- Run | Yrd Mat Mat Min Combat Hostiles Destroyed 11 | . 5 6 . Guns 11 | . 5 6 . Classes Destroyed 5 | . 4 1 . Hauler 1 | . 1 . . Watcher 1 | . 1 . . Swarmer 6 | . 3 3 . Grunt 4 | . 2 2 . Sentry 1 | . . 1 . Best Kill Streak 4 | . 3 4 . Combat Bots Only 4 | . 3 4 . Max Kills in Single Turn 2 | . 1 2 . Gunslinging . | . . . . Exploded . | . . . . Melee . | . . . . Uniques/NPCs Destroyed . | . . . . Combat | -11 -10 -9 -9 -------- Run | Yrd Mat Mat Min Hostile Shots Fired 162 | . 13 92 57 Missed 50 | . 1 31 18 Hits 112 | . 12 61 39 Melee 2 | . . . 2 Projectile 110 | . 12 61 37 Critical Strikes 1 | . . 1 . Damage Taken 1224 | . 115 626 483 Core 423 | . 10 144 269 Absorbed by Shields . | . . . . Core Remaining (%) 98 | 100 96 . . Volleys Fired 29 | . 16 13 . Largest 2 | . 2 2 . Hottest 80 | . 80 80 . Shots Fired 58 | . 32 26 . Gun 58 | . 32 26 . Cannon . | . . . . Launcher . | . . . . Special . | . . . . Kinetic 18 | . 18 . . Thermal . | . . . . Explosive . | . . . . Electromagnetic 40 | . 14 26 . Robot Hit Streak 8 | . 5 8 . Robot Miss Streak 3 | . 3 3 . Penetration Max . | . . . . Secondary Targets 1 | . 1 . . Max Gunslinging Chain 1 | . 1 . . Shots Hit Robots 34 | . 19 15 . Core Hits 17 | . 8 9 . Critical Kills . | . . . . Critical Parts Destroyed . | . . . . Critical Strikes . | . . . . Melee Attacks . | . . . . Impact . | . . . . Slashing . | . . . . Piercing . | . . . . Sneak Attacks . | . . . . Combat Hostiles . | . . . . Follow-up Attacks . | . . . . Damage Inflicted 500 | . 287 213 . Guns 495 | . 282 213 . Cannons . | . . . . Explosions . | . . . . Melee . | . . . . Ramming 5 | . 5 . . Kinetic 130 | . 130 . . Thermal . | . . . . Explosive . | . . . . Electromagnetic 365 | . 152 213 . Impact . | . . . . Slashing . | . . . . Piercing . | . . . . Highest Corruption 2 | . . 2 2 Average Corruption 2 | . . 2 2 Corruption Purged . | . . . . Corruption Blocked . | . . . . Effects 4 | . . 4 . Matter Fused 1 | . . 1 . Energy Discharges 1 | . . 1 . Data Loss (minor) 2 | . . 2 . Overload Shots . | . . . . Overflow Damage . | . . . . Projectiles . | . . . . Explosions . | . . . . Melee . | . . . . Knockbacks . | . . . . Impact . | . . . . Kinetic . | . . . . Secondary . | . . . . Self-Inflicted Damage . | . . . . Shots . | . . . . Rammed 1 | . 1 . . Targets Rammed 1 | . 1 . . Kicked . | . . . . Crushed . | . . . . Highest Temperature 132 | . 132 120 . Average Temperature 50 | . 51 49 . Received Heat Transfer 441 | . 42 171 228 Siege Activations . | . . . . Martial Activations . | . . . . Shielding Activations . | . . . . Robots Disrupted . | . . . . Combat Hostiles . | . . . . Robots Corrupted . | . . . . Combat Hostiles . | . . . . Parts Fried 2 | . 1 1 . Impact Corruptions . | . . . . Robots Melted . | . . . . Combat Hostiles . | . . . . Parts Melted 1 | . . 1 . Heat Transferred . | . . . . Parts Sabotaged . | . . . . Parts Stolen . | . . . . Parts Stripped . | . . . . Power Chain Reactions . | . . . . Alert | -11 -10 -9 -9 ------- Run | Yrd Mat Mat Min Maximum Alert Level . | . . . . Low Security (%) 100 | 100 100 100 100 Level 1 . | . . . . Level 2 . | . . . . Level 3 . | . . . . Level 4 . | . . . . Level 5 . | . . . . High Security . | . . . . Max Security . | . . . . Peak Influence 105 | . 76 105 . Initial 5 | . . 5 . Average 20 | . 16 31 . Influence Increases 320 | . 150 170 . Destroy 0b10 Robot/C 220 | . 100 120 . Destroy 0b10 Robot/NC 10 | . 10 . . Destroy Leader 44 | . 24 20 . Disable Machine 15 | . . 15 . Destroy Structure 1 | . 1 . . Lose Combat Pursuer 30 | . 15 15 . Influence Decreases 320 | . 136 184 . Entered New Map 9 | . . 9 . Time Decay 301 | . 136 165 . Lost Part 10 | . . 10 . Squads Dispatched 3 | . 1 2 . Investigation 1 | . 1 . . Extermination . | . . . . Reinforcement 2 | . . 2 . Assault . | . . . . Garrison . | . . . . Intercept . | . . . . Searches Triggered . | . . . . Construction Impeded . | . . . . Haulers Reinforced . | . . . . Active Scanning Responses . | . . . . Cargo Convoy Interrupts . | . . . . Stealth | -11 -10 -9 -9 --------- Run | Yrd Mat Mat Min Distress Signals 2 | . . 2 . Communications Jammed . | . . . . Distress Signals . | . . . . Times Spotted 33 | . 10 16 7 Peak Tracking Total 7 | . 3 7 7 Tactical Retreats 2 | . 1 1 . Traps | -11 -10 -9 -9 ------- Run | Yrd Mat Mat Min Traps Triggered . | . . . . Indirectly . | . . . . Trap Hack Attempts . | . . . . Triggered . | . . . . Disarmed . | . . . . Reprogrammed . | . . . . Reused . | . . . . Traps Extracted . | . . . . Installed . | . . . . Triggered . | . . . . Machines | -11 -10 -9 -9 ---------- Run | Yrd Mat Mat Min Machines Disabled 1 | . . 1 . Max in Single Turn 1 | . . 1 . Machines Repaired . | . . . . Machines Dismantled . | . . . . Machines Sabotaged . | . . . . Overloaded Fab Kills . | . . . . Hacking | -11 -10 -9 -9 --------- Run | Yrd Mat Mat Min Machines Accessed . | . . . . Terminals . | . . . . Fabricators . | . . . . Repair Stations . | . . . . Recycling Units . | . . . . Scanalyzers . | . . . . Garrison Access . | . . . . Total Hacks . | . . . . Successful . | . . . . Failed . | . . . . Catastrophic . | . . . . Database Lockouts . | . . . . Manual . | . . . . Terminals . | . . . . Fabricators . | . . . . Repair Stations . | . . . . Recycling Units . | . . . . Scanalyzers . | . . . . Garrison Access . | . . . . Terminal Hacks . | . . . . Fabricator Hacks . | . . . . Repair Station Hacks . | . . . . Recycling Unit Hacks . | . . . . Scanalyzer . | . . . . Garrison Access Hacks . | . . . . Unauthorized Hacks . | . . . . Terminals . | . . . . Fabricators . | . . . . Repair Stations . | . . . . Recycling Units . | . . . . Scanalyzers . | . . . . Garrison Access . | . . . . Data Cores Recovered . | . . . . Used . | . . . . Hacking Detections . | . . . . Full Trace Events . | . . . . Feedback Events . | . . . . Feedback Blocked . | . . . . Robot Schematics Acquired . | . . . . Robots Built . | . . . . Authchips . | . . . . Time . | . . . . Total Robot Build Rating . | . . . . Part Schematics Acquired . | . . . . Parts Built . | . . . . Authchips . | . . . . Time . | . . . . Total Part Build Rating . | . . . . Part Studies Acquired . | . . . . Parts Repaired . | . . . . Time . | . . . . Parts Recycled . | . . . . Recycled Matter . | . . . . Retrieved Matter . | . . . . Retrieved Components . | . . . . Parts Scanalyzed . | . . . . Part Schematics Acquired . | . . . . Parts Damaged . | . . . . Bothacking | -11 -10 -9 -9 ------------ Run | Yrd Mat Mat Min Used RIF Installer . | . . . . Robots Hacked . | . . . . Non-combat . | . . . . Combat . | . . . . Robot Hacks Applied . | . . . . Relay Couplers Released . | . . . . Fabnet Peak Effective % . | . . . . Robots Rewired . | . . . . Allies Hacked . | . . . . Hacks Repelled . | . . . . Allies | -11 -10 -9 -9 -------- Run | Yrd Mat Mat Min Total Allies . | . . . . Largest Group . | . . . . Highest-Rated Group . | . . . . Highest-Rated Ally . | . . . . Total Orders . | . . . . Ally Attacks . | . . . . Total Damage . | . . . . Kills . | . . . . Allies Corrupted . | . . . . Allies Melted . | . . . . Intel | -11 -10 -9 -9 ------- Run | Yrd Mat Mat Min Active Infowar (turns) . | . . . . Robot Analysis Total . | . . . . Derelict Logs Recovered . | . . . . Drone Launches . | . . . . Drone Recoveries . | . . . . Exploration | -11 -10 -9 -9 ------------- Run | Yrd Mat Mat Min Turns Passed 1218 | 68 564 487 99 Spaces Moved 756 | 44 328 280 104 Core 87 | 7 . . 80 Treads 575 | . 271 280 24 Legs 94 | 37 57 . . Wheels . | . . . . Hover . | . . . . Flight . | . . . . Fastest Speed 50 | 50 120 160 50 Average Speed 145 | 121 153 160 95 Slowest Speed 190 | 190 160 160 160 Overloaded Moves . | . . . . Propulsion Burnouts . | . . . . Robots Hopped . | . . . . Potential Cave-ins . | . . . . Cave-ins Triggered . | . . . . Exploration Rate (%) 24 | 3 38 27 28 Regions Visited 3 Branch Regions 1 Pre-discovered Areas . | . . . . Known Exits Taken . | . . . . Unknown Exits Taken 3 | 1 1 1 . Scrap Searched . | . . . . Spaces Dug . | . . . . Terrain Destroyed . | . . . . Melee . | . . . . Projectile . | . . . . AOE . | . . . . Terrain Rammed . | . . . . Walls Destroyed . | . . . . Machines Disabled . | . . . . Actions | -11 -10 -9 -9 --------- Run | Yrd Mat Mat Min Total 809 | 55 357 293 104 Wait 2 | . 2 . . Move 753 | 43 327 279 104 Hop . | . . . . Pick Up 8 | 6 2 . . Fast Attach 12 | 6 5 1 . Attach . | . . . . Detach . | . . . . Swap . | . . . . Drop 4 | . 4 . . Fire 29 | . 16 13 . Melee . | . . . . Ram . | . . . . Kick . | . . . . Crush 1 | . 1 . . Escape Stasis . | . . . . Rewire . | . . . . Trap . | . . . . Miscellaneous . | . . . . Route ------- -11/Scrapyard -10/Materials -9/Materials -9/Mines History --------- Turn | Location | Event 15 | -11/Scrapyard | Discovered new exit (range 16) 69 | -11/Scrapyard | Entered Materials 317 | -10/Materials | Build established: Mutant 611 | -10/Materials | Discovered new exit (range 11) 633 | -10/Materials | Entered another Materials area 633 | -9/Materials | Evolved 2 slots: Propulsion x1, Utility x1 1096 | -9/Materials | Discovered new exit (range 16) 1120 | -9/Materials | Entered Mines 1156 | -9/Mines | Core integrity fell below 50% 1189 | -9/Mines | Lost 4 parts (1p3n) 1200 | -9/Mines | Core integrity fell below 20% 1219 | -9/Mines | Destroyed by G-47 Trooper with Particle Gun Last Messages --------------- K-01 Serf cleans the Recycling Unit. System corrupted: Matter fused (-5). K-01 Serf collects debris. W-16 Scout sends out distress signal. EM Pulse Gun destroyed. K-01 Serf collects debris. System corrupted: Energy discharge (-32). Lgt. Armor Plating destroyed. EM Pulse Gun destroyed. O-16 Technician: "IFF HANDSHAKE FAILED. SECURING TERMINAL." ALERT: Hostiles spotted, dispatching reinforcements to Terminal M002. EXIT=FOUND Lgt. Treads destroyed. LOCATION=UNKNOWN GOAL=ESCAPE Lgt. Ion Engine destroyed. Lgt. Treads destroyed. Sml. Storage Unit destroyed. Map ----- +----------------------------------------------------+ | ???????????????????????????????????????????????? | | ???????????????????????????????????????????????? | | ???????????????????????????????????????????????? | | ???????????????????????????????????????????????? | | ???????????????????????????????????????????????? | | ???????????????????????????????????????????????? | | ???????????????????????????????????????????????? | | ???????????????????????????????????????????????? | | ???????????????????????????????????????????????? | | ???????????????????????????????????????????????? | | ???????????????????????????????????????????????? | | ????????????????????? ?????????????????????????? | | ????????????????????? ?????????????????????????? | | ????????????????????? ?????????????????????????? | | ????????????????????? ????????????????????????? | | ????????????????????? ????????????????????????? | | ????????????????????? ??????????????????????? | | ?????????????????????# #????????????????????? | | ?????????????????????# ????????????????????? | | ????????????????????## ????????????????????? | | ?????????????????#### """?????????????????????? | | ?????????? ?????# """?????????????????????? | | ???????????# #### ""??????????????????????? | | ???????????# ??????????????????????? | | ???????????? u #??????????????????????? | | ???????????????????#k @#??????????????????????? | | ???????????????????# ##?????????????????????? | | ???????????????????# g ##????????????????????? | | ???????????????????# g ##???????????????????? | | ???????????????????## ##??????????????????? | | ????????????????????## #??????????????????? | | ?????????????????????## #??????????????????? | | ??????????????????????## #??????????????????? | | ??????????????????????## ##?????????????????? | | ??????????????????????# ##????????????????? | | ?????????????????????## #?????????????###? | | ?????????????????????# #???????###""## ## | | ???????????????????# ### ##???????# X # | | ??????????????????# ##?## #???????## | | ??????????????????######???# #??###### | | ???????????????????????????# #### | | ?????????##????????????????# | | ????????## #???????????????###### ##### #### | | ????????# ######???????#####??# #???## ##??# | | ?????????# ## ###????## #### #????####???# | | ?????????# ###### ## #???????????# | | ?????????## ## ##??????????# | | ??????????### #??????????# | | ????????????## #??????????# | | ?????????????# = ## #??????????# | +----------------------------------------------------+ Best States ------------- Heat Dissipation 28 Energy Generation 10 Energy Capacity 125 Matter Stores 300 Matter Capacity 300 Sight Range 16 Terrain Scan Density 10 Armor Coverage 150 Evasion (%) 55 Recoil Reduction 3 Item Schematics ----------------- None Robot Schematics ------------------ None Fabricated ------------ Nothing Repaired ---------- Nothing Studied --------- None Alien Tech Used ----------------- None Achievements -------------- None Challenges ------------ None Game ------ Seed ServoSmallOptics Manual? 0 Play Time 00:06:20 Cumulative 25.1 hours Start 2026.07.04 @ 17:50:34 End 2026.07.04 @ 17:56:26 Sessions 1 Manual Loads 0 Difficulty Rogue Special Mode None Game No. 36 Rogue 31 Adventurer 1 Explorer 4 Win Type - Total 0 Types 0/0/0/0/0/0/0/0/0/0 Lore% 10 Gallery% 19 Achievement% 18 Wizard Run 0 Options --------- Layout 1 ASCII 0 Keyboard 0 Movement Arrows Keybinds 0 Fullscreen 1 Font 24/Smallcaps Map View 50x35 Zoom Use 0% Tactical HUD 0 Map Filters NONE Filters NONE Steam 1 RUN: 86148229-0660-47e7-b67e-bacd18355cd5